[Event "Titled Tuesday Blitz July 11 Early 2023"]
[White "NovoselovRoman"]
[Black "Dargan, Paul A G"]
[BlackFideId "416762"]
[WhiteElo "2552"]
[BlackElo "2176"]
[Result "1-0"]
[Round "1"]
[TimeControl "180+2"]
[Date "2023.07.11"]
[WhiteClock "0:01:13"]
[BlackClock "0:00:32"]
[Board "194"]

1. e4 {[%clk 0:03:00]}  c5 {[%clk 0:02:58]} 2. Nc3 {[%clk 0:03:01]}  Nc6 {[%clk 0:02:58]} 3. g3 {[%clk 0:03:01]}  g6 {[%clk 0:02:58]} 4. Bg2 {[%clk 0:03:02]}  Bg7 {[%clk 0:02:58]} 5. d3 {[%clk 0:03:02]}  d6 {[%clk 0:02:58]} 6. Be3 {[%clk 0:03:03]}  e5 {[%clk 0:02:57]} 7. Qd2 {[%clk 0:03:02]}  Rb8 {[%clk 0:02:48]} 8. a4 {[%clk 0:02:57]}  a6 {[%clk 0:02:45]} 9. f4 {[%clk 0:02:52]}  Nd4 {[%clk 0:02:40]} 10. Nf3 {[%clk 0:02:50]}  Bh3 {[%clk 0:02:15]} 11. O-O {[%clk 0:02:23]}  Bxg2 {[%clk 0:02:12]} 12. Kxg2 {[%clk 0:02:24]}  Ne7 {[%clk 0:01:57]} 13. fxe5 {[%clk 0:02:20]}  dxe5 {[%clk 0:01:55]} 14. Bh6 {[%clk 0:02:20]}  O-O {[%clk 0:01:52]} 15. Bxg7 {[%clk 0:02:19]}  Kxg7 {[%clk 0:01:53]} 16. Nxe5 {[%clk 0:02:18]}  f6 {[%clk 0:01:46]} 17. Ng4 {[%clk 0:02:12]}  Ng8 {[%clk 0:01:46]} 18. Nd5 {[%clk 0:02:07]}  h5 {[%clk 0:01:40]} 19. Nge3 {[%clk 0:02:01]}  b5 {[%clk 0:01:30]} 20. axb5 {[%clk 0:01:59]}  axb5 {[%clk 0:01:31]} 21. Ra7+ {[%clk 0:01:59]}  Rf7 {[%clk 0:01:32]} 22. Rxf7+ {[%clk 0:01:58]}  Kxf7 {[%clk 0:01:33]} 23. c3 {[%clk 0:01:57]}  Ne6 {[%clk 0:01:29]} 24. Nxf6 {[%clk 0:01:53]}  Nxf6 {[%clk 0:01:28]} 25. Nd5 {[%clk 0:01:53]}  Kg7 {[%clk 0:01:23]} 26. Rxf6 {[%clk 0:01:47]}  Nf8 {[%clk 0:01:17]} 27. Qf4 {[%clk 0:01:37]}  Rb7 {[%clk 0:01:09]} 28. Rd6 {[%clk 0:01:33]}  Rd7 {[%clk 0:00:59]} 29. Qe5+ {[%clk 0:01:30]}  Kh6 {[%clk 0:00:53]} 30. Qh8+ {[%clk 0:01:19]}  Rh7 {[%clk 0:00:32]} 31. Qxh7+ {[%clk 0:01:13]} 1-0


[Site "https://www.chess.com"]

[Event "Titled Tuesday Blitz July 11 Early 2023"]
[White "Hartikainen, Jarmo"]
[Black "Ambartsumova, Karina"]
[WhiteFideId "503134"]
[BlackFideId "4166299"]
[WhiteElo "2160"]
[BlackElo "2551"]
[Result "0-1"]
[Round "1"]
[TimeControl "180+2"]
[Date "2023.07.11"]
[WhiteClock "0:00:04"]
[BlackClock "0:00:28"]
[Board "197"]

1. e4 {[%clk 0:02:57]}  c5 {[%clk 0:02:58]} 2. c3 {[%clk 0:02:57]}  d5 {[%clk 0:02:58]} 3. exd5 {[%clk 0:02:57]}  Qxd5 {[%clk 0:02:58]} 4. d4 {[%clk 0:02:57]}  Nc6 {[%clk 0:02:59]} 5. Nf3 {[%clk 0:02:56]}  Bf5 {[%clk 0:03:00]} 6. Na3 {[%clk 0:02:52]}  cxd4 {[%clk 0:02:57]} 7. Nb5 {[%clk 0:02:49]}  O-O-O {[%clk 0:02:56]} 8. cxd4 {[%clk 0:01:51]}  e5 {[%clk 0:02:53]} 9. Nc3 {[%clk 0:01:36]}  Bb4 {[%clk 0:02:51]} 10. Bd2 {[%clk 0:01:17]}  Bxc3 {[%clk 0:02:28]} 11. bxc3 {[%clk 0:01:16]}  exd4 {[%clk 0:02:25]} 12. cxd4 {[%clk 0:01:14]}  Nxd4 {[%clk 0:01:21]} 13. Nxd4 {[%clk 0:01:06]}  Qxd4 {[%clk 0:01:21]} 14. Rc1+ {[%clk 0:01:05]}  Kb8 {[%clk 0:01:21]} 15. Bf4+ {[%clk 0:01:05]}  Ka8 {[%clk 0:01:20]} 16. Qxd4 {[%clk 0:00:46]}  Rxd4 {[%clk 0:01:20]} 17. Be3 {[%clk 0:00:43]}  Rd8 {[%clk 0:01:15]} 18. Be2 {[%clk 0:00:42]}  Nf6 {[%clk 0:01:13]} 19. O-O {[%clk 0:00:42]}  Rc8 {[%clk 0:01:08]} 20. Bc4 {[%clk 0:00:24]}  Bg6 {[%clk 0:01:03]} 21. f3 {[%clk 0:00:24]}  Rhe8 {[%clk 0:00:58]} 22. Bf2 {[%clk 0:00:20]}  a6 {[%clk 0:00:44]} 23. a4 {[%clk 0:00:19]}  Nd7 {[%clk 0:00:42]} 24. a5 {[%clk 0:00:19]}  Ne5 {[%clk 0:00:41]} 25. Be2 {[%clk 0:00:18]}  Nc6 {[%clk 0:00:34]} 26. Bb6 {[%clk 0:00:15]}  Rxe2 {[%clk 0:00:33]} 27. Rfe1 {[%clk 0:00:15]}  Rce8 {[%clk 0:00:33]} 28. Rxe2 {[%clk 0:00:14]}  Rxe2 {[%clk 0:00:33]} 29. Rd1 {[%clk 0:00:15]}  Re8 {[%clk 0:00:33]} 30. Kf2 {[%clk 0:00:15]}  Bf5 {[%clk 0:00:33]} 31. g3 {[%clk 0:00:15]}  Be6 {[%clk 0:00:33]} 32. h4 {[%clk 0:00:15]}  Kb8 {[%clk 0:00:34]} 33. g4 {[%clk 0:00:15]}  Kc8 {[%clk 0:00:34]} 34. Kg3 {[%clk 0:00:16]}  h6 {[%clk 0:00:33]} 35. f4 {[%clk 0:00:16]}  g6 {[%clk 0:00:32]} 36. Rf1 {[%clk 0:00:14]}  Bd7 {[%clk 0:00:31]} 37. f5 {[%clk 0:00:14]}  gxf5 {[%clk 0:00:31]} 38. gxf5 {[%clk 0:00:15]}  Rg8+ {[%clk 0:00:29]} 39. Kf4 {[%clk 0:00:14]}  Ne7 {[%clk 0:00:28]} 40. Rc1+ {[%clk 0:00:14]}  Kb8 {[%clk 0:00:29]} 41. f6 {[%clk 0:00:14]}  Nd5+ {[%clk 0:00:29]} 42. Ke5 {[%clk 0:00:15]}  Nxb6 {[%clk 0:00:28]} 43. axb6 {[%clk 0:00:15]}  Bc6 {[%clk 0:00:29]} 44. Kd6 {[%clk 0:00:15]}  Re8 {[%clk 0:00:29]} 45. Rg1 {[%clk 0:00:13]}  Re6+ {[%clk 0:00:27]} 46. Kc5 {[%clk 0:00:14]}  Kc8 {[%clk 0:00:27]} 47. Rg8+ {[%clk 0:00:13]}  Kd7 {[%clk 0:00:28]} 48. Rg7 {[%clk 0:00:14]}  Rxf6 {[%clk 0:00:28]} 49. Rh7 {[%clk 0:00:14]}  Rf5+ {[%clk 0:00:28]} 50. Kd4 {[%clk 0:00:14]}  h5 {[%clk 0:00:28]} 51. Rh6 {[%clk 0:00:13]}  f6 {[%clk 0:00:27]} 52. Rh7+ {[%clk 0:00:13]}  Kd6 {[%clk 0:00:27]} 53. Rc7 {[%clk 0:00:12]}  Rf4+ {[%clk 0:00:26]} 54. Kd3 {[%clk 0:00:12]}  Rxh4 {[%clk 0:00:27]} 55. Rf7 {[%clk 0:00:10]}  Ke6 {[%clk 0:00:26]} 56. Rh7 {[%clk 0:00:10]}  Rb4 {[%clk 0:00:26]} 57. Kc3 {[%clk 0:00:09]}  Rxb6 {[%clk 0:00:27]} 58. Rxh5 {[%clk 0:00:09]}  Rb5 {[%clk 0:00:27]} 59. Rh6 {[%clk 0:00:09]}  a5 {[%clk 0:00:26]} 60. Rh8 {[%clk 0:00:09]}  a4 {[%clk 0:00:27]} 61. Ra8 {[%clk 0:00:09]}  Rb3+ {[%clk 0:00:27]} 62. Kc2 {[%clk 0:00:09]}  f5 {[%clk 0:00:27]} 63. Ra5 {[%clk 0:00:07]}  f4 {[%clk 0:00:27]} 64. Kd2 {[%clk 0:00:08]}  f3 {[%clk 0:00:27]} 65. Ke1 {[%clk 0:00:08]}  a3 {[%clk 0:00:27]} 66. Kf2 {[%clk 0:00:08]}  Rb2+ {[%clk 0:00:27]} 67. Ke1 {[%clk 0:00:07]}  a2 {[%clk 0:00:28]} 68. Ra3 {[%clk 0:00:07]}  Rb1+ {[%clk 0:00:27]} 69. Kf2 {[%clk 0:00:04]}  a1=Q {[%clk 0:00:28]} 0-1


[Site "https://www.chess.com"]

[Event "Titled Tuesday Blitz July 11 Early 2023"]
[White "Lisjak, Zlatko"]
[Black "Bilan, Danila"]
[WhiteFideId "14502186"]
[BlackFideId "24161918"]
[WhiteElo "2149"]
[BlackElo "2550"]
[Result "1-0"]
[Round "1"]
[TimeControl "180+2"]
[Date "2023.07.11"]
[WhiteClock "0:00:29"]
[BlackClock "0:00:04"]
[Board "199"]

1. d4 {[%clk 0:02:58]}  d5 {[%clk 0:02:55]} 2. Nc3 {[%clk 0:02:56]}  Nf6 {[%clk 0:02:54]} 3. Bf4 {[%clk 0:02:54]}  c6 {[%clk 0:02:52]} 4. e3 {[%clk 0:02:54]}  g6 {[%clk 0:02:49]} 5. h4 {[%clk 0:02:51]}  h5 {[%clk 0:02:40]} 6. Qd2 {[%clk 0:02:49]}  Bg7 {[%clk 0:02:38]} 7. O-O-O {[%clk 0:02:49]}  b5 {[%clk 0:02:31]} 8. f3 {[%clk 0:02:40]}  Nbd7 {[%clk 0:02:19]} 9. Kb1 {[%clk 0:02:34]}  Nb6 {[%clk 0:02:16]} 10. b3 {[%clk 0:02:15]}  a5 {[%clk 0:02:01]} 11. Bd3 {[%clk 0:01:57]}  b4 {[%clk 0:01:28]} 12. Nce2 {[%clk 0:01:54]}  Bf5 {[%clk 0:01:26]} 13. Nh3 {[%clk 0:01:47]}  Nbd7 {[%clk 0:01:05]} 14. Nf2 {[%clk 0:01:35]}  Bxd3 {[%clk 0:01:01]} 15. Nxd3 {[%clk 0:01:26]}  Qb6 {[%clk 0:00:59]} 16. Rhe1 {[%clk 0:01:06]}  c5 {[%clk 0:00:49]} 17. dxc5 {[%clk 0:01:05]}  Nxc5 {[%clk 0:00:49]} 18. Nxc5 {[%clk 0:01:04]}  Qxc5 {[%clk 0:00:50]} 19. Be5 {[%clk 0:01:03]}  O-O {[%clk 0:00:46]} 20. Qd4 {[%clk 0:00:45]}  Qc6 {[%clk 0:00:37]} 21. Nf4 {[%clk 0:00:43]}  Rfc8 {[%clk 0:00:33]} 22. Re2 {[%clk 0:00:41]}  e6 {[%clk 0:00:33]} 23. Bxf6 {[%clk 0:00:39]}  Bf8 {[%clk 0:00:30]} 24. Nxh5 {[%clk 0:00:33]}  gxh5 {[%clk 0:00:18]} 25. Qf4 {[%clk 0:00:31]}  Kh7 {[%clk 0:00:11]} 26. Qg5 {[%clk 0:00:31]}  Bh6 {[%clk 0:00:08]} 27. Qxh5 {[%clk 0:00:30]}  e5 {[%clk 0:00:04]} 28. Qxf7+ {[%clk 0:00:29]} 1-0


[Site "https://www.chess.com"]

[Event "Titled Tuesday Blitz July 11 Early 2023"]
[White "Przybylski, Wojciech"]
[Black "HeinichessPY"]
[WhiteFideId "1117599"]
[WhiteElo "2550"]
[BlackElo "2144"]
[Result "1-0"]
[Round "1"]
[TimeControl "180+2"]
[Date "2023.07.11"]
[WhiteClock "0:00:49"]
[BlackClock "0:00:01"]
[Board "200"]

1. d4 {[%clk 0:03:00]}  Nf6 {[%clk 0:02:55]} 2. Qd3 {[%clk 0:02:59]}  d5 {[%clk 0:02:53]} 3. Nf3 {[%clk 0:02:58]}  g6 {[%clk 0:02:52]} 4. Bf4 {[%clk 0:02:57]}  Nc6 {[%clk 0:02:49]} 5. Nc3 {[%clk 0:02:56]}  Bf5 {[%clk 0:02:48]} 6. Qd2 {[%clk 0:02:56]}  Bg7 {[%clk 0:02:48]} 7. a3 {[%clk 0:02:55]}  O-O {[%clk 0:02:47]} 8. e3 {[%clk 0:02:55]}  Ne4 {[%clk 0:02:43]} 9. Qc1 {[%clk 0:02:50]}  Nxc3 {[%clk 0:02:42]} 10. bxc3 {[%clk 0:02:50]}  e5 {[%clk 0:02:37]} 11. Nxe5 {[%clk 0:02:46]}  Nxe5 {[%clk 0:02:36]} 12. dxe5 {[%clk 0:02:44]}  Re8 {[%clk 0:02:31]} 13. Bd3 {[%clk 0:02:43]}  Bxe5 {[%clk 0:02:28]} 14. Bxe5 {[%clk 0:02:39]}  Rxe5 {[%clk 0:02:27]} 15. Rb1 {[%clk 0:02:38]}  b6 {[%clk 0:02:21]} 16. O-O {[%clk 0:02:37]}  Qh4 {[%clk 0:02:16]} 17. Rb4 {[%clk 0:02:35]}  Be4 {[%clk 0:02:00]} 18. f3 {[%clk 0:02:14]}  c5 {[%clk 0:01:59]} 19. g3 {[%clk 0:01:51]}  Qh5 {[%clk 0:01:22]} 20. Ra4 {[%clk 0:01:49]}  Bxf3 {[%clk 0:01:18]} 21. Rh4 {[%clk 0:01:48]}  Qg5 {[%clk 0:00:59]} 22. Rxf3 {[%clk 0:01:47]}  Rae8 {[%clk 0:00:55]} 23. Rhf4 {[%clk 0:01:46]}  f5 {[%clk 0:00:53]} 24. Kf2 {[%clk 0:01:33]}  c4 {[%clk 0:00:53]} 25. Bf1 {[%clk 0:01:31]}  Qe7 {[%clk 0:00:52]} 26. Qd2 {[%clk 0:01:28]}  Qxa3 {[%clk 0:00:47]} 27. Rd4 {[%clk 0:01:25]}  Qc5 {[%clk 0:00:37]} 28. g4 {[%clk 0:01:14]}  fxg4 {[%clk 0:00:27]} 29. Rxg4 {[%clk 0:01:14]}  a5 {[%clk 0:00:27]} 30. Qd4 {[%clk 0:00:59]}  a4 {[%clk 0:00:22]} 31. Qxc5 {[%clk 0:00:57]}  bxc5 {[%clk 0:00:23]} 32. Rg1 {[%clk 0:00:55]}  a3 {[%clk 0:00:16]} 33. Be2 {[%clk 0:00:54]}  d4 {[%clk 0:00:16]} 34. Bxc4+ {[%clk 0:00:53]}  Kg7 {[%clk 0:00:15]} 35. cxd4 {[%clk 0:00:53]}  cxd4 {[%clk 0:00:15]} 36. exd4 {[%clk 0:00:52]}  Re4 {[%clk 0:00:14]} 37. Rd1 {[%clk 0:00:49]}  Ra8 {[%clk 0:00:01]} 38. Bd5 {[%clk 0:00:49]} 1-0


[Site "https://www.chess.com"]

[Event "Titled Tuesday Blitz July 11 Early 2023"]
[White "Wesolowska, Hanna"]
[Black "Rodchenkov, Sergey D."]
[WhiteFideId "1104683"]
[BlackFideId "4168712"]
[WhiteElo "2144"]
[BlackElo "2549"]
[Result "0-1"]
[Round "1"]
[TimeControl "180+2"]
[Date "2023.07.11"]
[WhiteClock "0:01:36"]
[BlackClock "0:02:17"]
[Board "201"]

1. e4 {[%clk 0:02:59]}  c5 {[%clk 0:03:00]} 2. Nc3 {[%clk 0:02:59]}  d6 {[%clk 0:03:00]} 3. g3 {[%clk 0:02:59]}  g6 {[%clk 0:03:00]} 4. Bg2 {[%clk 0:02:59]}  Bg7 {[%clk 0:03:00]} 5. d3 {[%clk 0:03:00]}  Nc6 {[%clk 0:03:01]} 6. Be3 {[%clk 0:03:00]}  Rb8 {[%clk 0:03:01]} 7. Qd2 {[%clk 0:03:00]}  Nd4 {[%clk 0:03:01]} 8. Nd1 {[%clk 0:02:57]}  b5 {[%clk 0:03:00]} 9. c3 {[%clk 0:02:57]}  Nc6 {[%clk 0:03:01]} 10. Ne2 {[%clk 0:02:58]}  h5 {[%clk 0:03:01]} 11. h4 {[%clk 0:02:56]}  Bg4 {[%clk 0:03:02]} 12. f3 {[%clk 0:02:56]}  Bd7 {[%clk 0:03:01]} 13. Nf2 {[%clk 0:02:56]}  e6 {[%clk 0:03:00]} 14. O-O {[%clk 0:02:56]}  Nge7 {[%clk 0:03:00]} 15. d4 {[%clk 0:02:55]}  cxd4 {[%clk 0:02:59]} 16. cxd4 {[%clk 0:02:56]}  d5 {[%clk 0:02:59]} 17. e5 {[%clk 0:02:54]}  Nf5 {[%clk 0:02:57]} 18. Bg5 {[%clk 0:02:53]}  f6 {[%clk 0:02:58]} 19. exf6 {[%clk 0:02:52]}  Bxf6 {[%clk 0:02:58]} 20. Rfe1 {[%clk 0:02:41]}  O-O {[%clk 0:02:56]} 21. Nf4 {[%clk 0:02:39]}  Bxg5 {[%clk 0:02:53]} 22. hxg5 {[%clk 0:02:39]}  Qxg5 {[%clk 0:02:46]} 23. g4 {[%clk 0:02:28]}  hxg4 {[%clk 0:02:36]} 24. Nxg4 {[%clk 0:02:13]}  Nfxd4 {[%clk 0:02:17]} 25. Nxe6 {[%clk 0:01:36]} 0-1


[Site "https://www.chess.com"]

[Event "Titled Tuesday Blitz July 11 Early 2023"]
[White "Shubenkova, Veronika"]
[Black "Grigoryan, Meri"]
[WhiteFideId "44124040"]
[BlackFideId "13300571"]
[WhiteElo "2547"]
[BlackElo "2132"]
[Result "1-0"]
[Round "1"]
[TimeControl "180+2"]
[Date "2023.07.11"]
[WhiteClock "0:00:46"]
[BlackClock "0:00:17"]
[Board "204"]

1. e4 {[%clk 0:02:59]}  e5 {[%clk 0:02:54]} 2. Nf3 {[%clk 0:02:59]}  Nc6 {[%clk 0:02:53]} 3. Bb5 {[%clk 0:02:59]}  f5 {[%clk 0:02:52]} 4. Bxc6 {[%clk 0:02:59]}  dxc6 {[%clk 0:02:51]} 5. Qe2 {[%clk 0:03:00]}  Bd6 {[%clk 0:02:33]} 6. exf5 {[%clk 0:02:56]}  Bxf5 {[%clk 0:02:32]} 7. d4 {[%clk 0:02:50]}  e4 {[%clk 0:02:29]} 8. Nfd2 {[%clk 0:02:44]}  Qe7 {[%clk 0:02:25]} 9. Nc4 {[%clk 0:02:42]}  Nf6 {[%clk 0:02:21]} 10. Bg5 {[%clk 0:02:41]}  O-O-O {[%clk 0:02:13]} 11. Nbd2 {[%clk 0:02:33]}  h6 {[%clk 0:02:09]} 12. Bxf6 {[%clk 0:02:27]}  Qxf6 {[%clk 0:02:09]} 13. Nb3 {[%clk 0:02:21]}  Rhe8 {[%clk 0:01:59]} 14. h4 {[%clk 0:02:19]}  Bb4+ {[%clk 0:01:51]} 15. c3 {[%clk 0:02:18]}  Bd6 {[%clk 0:01:49]} 16. O-O-O {[%clk 0:02:17]}  Bf4+ {[%clk 0:01:48]} 17. Ne3 {[%clk 0:02:17]}  h5 {[%clk 0:01:12]} 18. Kb1 {[%clk 0:02:13]}  Bg6 {[%clk 0:00:58]} 19. g4 {[%clk 0:02:10]}  Qf7 {[%clk 0:00:54]} 20. Rdg1 {[%clk 0:02:05]}  Rf8 {[%clk 0:00:45]} 21. Rg2 {[%clk 0:01:58]}  Bxe3 {[%clk 0:00:42]} 22. fxe3 {[%clk 0:01:57]}  hxg4 {[%clk 0:00:40]} 23. Qxg4+ {[%clk 0:01:56]}  Bf5 {[%clk 0:00:38]} 24. Qxg7 {[%clk 0:01:54]}  Qc4 {[%clk 0:00:38]} 25. Nc5 {[%clk 0:01:51]}  b6 {[%clk 0:00:35]} 26. Nb3 {[%clk 0:01:41]}  Be6 {[%clk 0:00:35]} 27. Qe5 {[%clk 0:01:38]}  Rf3 {[%clk 0:00:29]} 28. Nc1 {[%clk 0:01:31]}  Rdf8 {[%clk 0:00:28]} 29. Rg7 {[%clk 0:01:28]}  R8f7 {[%clk 0:00:20]} 30. Rxf7 {[%clk 0:01:27]}  Rxf7 {[%clk 0:00:20]} 31. h5 {[%clk 0:01:27]}  a5 {[%clk 0:00:20]} 32. h6 {[%clk 0:01:27]}  a4 {[%clk 0:00:20]} 33. h7 {[%clk 0:01:27]}  a3 {[%clk 0:00:16]} 34. h8=Q+ {[%clk 0:01:26]}  Kb7 {[%clk 0:00:17]} 35. Rh2 {[%clk 0:01:18]}  axb2 {[%clk 0:00:17]} 36. Rxb2 {[%clk 0:01:19]}  Rf1 {[%clk 0:00:17]} 37. Rxb6+ {[%clk 0:01:11]}  Kxb6 {[%clk 0:00:17]} 38. Qb8+ {[%clk 0:01:10]}  Ka6 {[%clk 0:00:17]} 39. Qa8+ {[%clk 0:00:46]}  Kb6 {[%clk 0:00:17]} 40. Qea5# {[%clk 0:00:46]} 1-0


[Site "https://www.chess.com"]

[Event "Titled Tuesday Blitz July 11 Early 2023"]
[White "Roque Sola, Jose Luis"]
[Black "Demin, Vladimir"]
[WhiteFideId "5120390"]
[BlackFideId "4167457"]
[WhiteElo "2127"]
[BlackElo "2545"]
[Result "0-1"]
[Round "1"]
[TimeControl "180+2"]
[Date "2023.07.11"]
[WhiteClock "0:00:00"]
[BlackClock "0:00:11"]
[Board "205"]

1. c4 {[%clk 0:02:59]}  e6 {[%clk 0:01:49]} 2. Nf3 {[%clk 0:02:57]}  Nf6 {[%clk 0:01:48]} 3. Nc3 {[%clk 0:02:55]}  d5 {[%clk 0:01:48]} 4. d4 {[%clk 0:02:52]}  c5 {[%clk 0:01:46]} 5. cxd5 {[%clk 0:02:49]}  cxd4 {[%clk 0:01:45]} 6. Nxd4 {[%clk 0:02:42]}  Nxd5 {[%clk 0:01:41]} 7. e4 {[%clk 0:02:30]}  Nxc3 {[%clk 0:01:32]} 8. bxc3 {[%clk 0:02:31]}  Bc5 {[%clk 0:01:21]} 9. Be3 {[%clk 0:02:12]}  Qh4 {[%clk 0:01:00]} 10. Bb5+ {[%clk 0:01:53]}  Bd7 {[%clk 0:00:57]} 11. Bxd7+ {[%clk 0:01:32]}  Nxd7 {[%clk 0:00:58]} 12. Qd3 {[%clk 0:01:07]}  Qg4 {[%clk 0:00:30]} 13. O-O {[%clk 0:00:58]}  O-O {[%clk 0:00:24]} 14. h3 {[%clk 0:00:49]}  Qg6 {[%clk 0:00:23]} 15. Nf3 {[%clk 0:00:30]}  Rfd8 {[%clk 0:00:21]} 16. Rad1 {[%clk 0:00:20]}  Be7 {[%clk 0:00:20]} 17. Qc2 {[%clk 0:00:16]}  h6 {[%clk 0:00:17]} 18. Rd4 {[%clk 0:00:13]}  Nf6 {[%clk 0:00:15]} 19. Rfd1 {[%clk 0:00:12]}  Rxd4 {[%clk 0:00:16]} 20. Rxd4 {[%clk 0:00:12]}  Bc5 {[%clk 0:00:16]} 21. Rc4 {[%clk 0:00:06]}  Bxe3 {[%clk 0:00:16]} 22. fxe3 {[%clk 0:00:07]}  b5 {[%clk 0:00:12]} 23. Rd4 {[%clk 0:00:07]}  Rc8 {[%clk 0:00:12]} 24. Qd3 {[%clk 0:00:06]}  Kh7 {[%clk 0:00:11]} 25. Ne5 {[%clk 0:00:05]}  Qg3 {[%clk 0:00:11]} 26. Nxf7 {[%clk 0:00:04]}  Rf8 {[%clk 0:00:11]} 27. Nd6 {[%clk 0:00:00]}  e5 {[%clk 0:00:11]} 0-1


[Site "https://www.chess.com"]

[Event "Titled Tuesday Blitz July 11 Early 2023"]
[White "Horokoskii"]
[Black "Djabri, Massinas"]
[BlackFideId "7905726"]
[WhiteElo "2123"]
[BlackElo "2543"]
[Result "1/2-1/2"]
[Round "1"]
[TimeControl "180+2"]
[Date "2023.07.11"]
[WhiteClock "0:00:12"]
[BlackClock "0:00:47"]
[Board "207"]

1. d4 {[%clk 0:02:55]}  Nf6 {[%clk 0:02:59]} 2. c4 {[%clk 0:02:56]}  e6 {[%clk 0:02:58]} 3. g3 {[%clk 0:02:56]}  d5 {[%clk 0:02:56]} 4. Bg2 {[%clk 0:02:55]}  dxc4 {[%clk 0:02:55]} 5. Nf3 {[%clk 0:02:55]}  c5 {[%clk 0:02:54]} 6. Qa4+ {[%clk 0:02:50]}  Nc6 {[%clk 0:02:50]} 7. O-O {[%clk 0:02:26]}  Bd7 {[%clk 0:02:47]} 8. dxc5 {[%clk 0:02:24]}  Bxc5 {[%clk 0:02:38]} 9. Qxc4 {[%clk 0:02:23]}  Bb6 {[%clk 0:02:32]} 10. Nc3 {[%clk 0:02:19]}  O-O {[%clk 0:02:27]} 11. Rd1 {[%clk 0:02:15]}  Qe7 {[%clk 0:02:27]} 12. Bg5 {[%clk 0:02:10]}  Rfd8 {[%clk 0:02:26]} 13. Na4 {[%clk 0:02:09]}  Na5 {[%clk 0:02:21]} 14. Qh4 {[%clk 0:01:56]}  Bxa4 {[%clk 0:02:05]} 15. Qxa4 {[%clk 0:01:54]}  h6 {[%clk 0:02:06]} 16. Bd2 {[%clk 0:01:41]}  Nc6 {[%clk 0:02:05]} 17. Bc3 {[%clk 0:01:40]}  Nd5 {[%clk 0:02:04]} 18. Be1 {[%clk 0:01:35]}  Nc7 {[%clk 0:01:54]} 19. Rac1 {[%clk 0:01:27]}  Rxd1 {[%clk 0:01:53]} 20. Rxd1 {[%clk 0:01:27]}  Rd8 {[%clk 0:01:53]} 21. Rxd8+ {[%clk 0:01:26]}  Qxd8 {[%clk 0:01:53]} 22. Qc2 {[%clk 0:01:25]}  Nb5 {[%clk 0:01:47]} 23. a4 {[%clk 0:01:14]}  Nbd4 {[%clk 0:01:47]} 24. Nxd4 {[%clk 0:01:14]}  Nxd4 {[%clk 0:01:47]} 25. Qd3 {[%clk 0:01:13]}  Nc6 {[%clk 0:01:41]} 26. Bxc6 {[%clk 0:00:59]}  Qxd3 {[%clk 0:01:36]} 27. exd3 {[%clk 0:00:59]}  bxc6 {[%clk 0:01:36]} 28. Kf1 {[%clk 0:00:53]}  Kf8 {[%clk 0:01:36]} 29. Bc3 {[%clk 0:00:53]}  g6 {[%clk 0:01:34]} 30. Ke2 {[%clk 0:00:52]}  Ke7 {[%clk 0:01:34]} 31. b3 {[%clk 0:00:51]}  Kd6 {[%clk 0:01:34]} 32. Bb4+ {[%clk 0:00:50]}  Kd5 {[%clk 0:01:34]} 33. Bc3 {[%clk 0:00:48]}  Bd4 {[%clk 0:01:32]} 34. Bd2 {[%clk 0:00:46]}  h5 {[%clk 0:01:29]} 35. f3 {[%clk 0:00:45]}  a6 {[%clk 0:01:29]} 36. g4 {[%clk 0:00:43]}  Be5 {[%clk 0:01:22]} 37. h3 {[%clk 0:00:43]}  Bf6 {[%clk 0:01:19]} 38. Be1 {[%clk 0:00:41]}  Be5 {[%clk 0:01:14]} 39. Bf2 {[%clk 0:00:40]}  Bf4 {[%clk 0:01:14]} 40. Bb6 {[%clk 0:00:39]}  f5 {[%clk 0:01:13]} 41. Ba7 {[%clk 0:00:34]}  hxg4 {[%clk 0:01:08]} 42. hxg4 {[%clk 0:00:32]}  Be5 {[%clk 0:01:07]} 43. Bf2 {[%clk 0:00:31]}  Bd4 {[%clk 0:01:07]} 44. Be1 {[%clk 0:00:30]}  Ke5 {[%clk 0:01:05]} 45. Bg3+ {[%clk 0:00:27]}  Kf6 {[%clk 0:01:04]} 46. Bh4+ {[%clk 0:00:26]}  g5 {[%clk 0:01:04]} 47. Be1 {[%clk 0:00:25]}  Ke5 {[%clk 0:01:02]} 48. Bg3+ {[%clk 0:00:24]}  Kd5 {[%clk 0:01:02]} 49. Bc7 {[%clk 0:00:21]}  Bc3 {[%clk 0:01:02]} 50. Bd8 {[%clk 0:00:21]}  fxg4 {[%clk 0:00:56]} 51. fxg4 {[%clk 0:00:21]}  e5 {[%clk 0:00:50]} 52. Bxg5 {[%clk 0:00:20]}  e4 {[%clk 0:00:51]} 53. dxe4+ {[%clk 0:00:19]}  Kxe4 {[%clk 0:00:52]} 54. Bd2 {[%clk 0:00:19]}  Bg7 {[%clk 0:00:51]} 55. g5 {[%clk 0:00:20]}  c5 {[%clk 0:00:50]} 56. Bc1 {[%clk 0:00:19]}  c4 {[%clk 0:00:48]} 57. bxc4 {[%clk 0:00:19]}  Bf8 {[%clk 0:00:46]} 58. g6 {[%clk 0:00:16]}  Kd4 {[%clk 0:00:45]} 59. Bb2+ {[%clk 0:00:16]}  Kxc4 {[%clk 0:00:45]} 60. g7 {[%clk 0:00:12]}  Bxg7 {[%clk 0:00:45]} 61. Bxg7 {[%clk 0:00:12]}  Kb4 {[%clk 0:00:46]} 62. Kd2 {[%clk 0:00:11]}  Kxa4 {[%clk 0:00:47]} 63. Kc2 {[%clk 0:00:11]}  Ka3 {[%clk 0:00:46]} 64. Kb1 {[%clk 0:00:12]}  a5 {[%clk 0:00:46]} 65. Ka1 {[%clk 0:00:12]}  a4 {[%clk 0:00:47]} 66. Bf8+ {[%clk 0:00:11]}  Kb3 {[%clk 0:00:47]} 67. Bg7 {[%clk 0:00:12]}  Ka3 {[%clk 0:00:48]} 68. Bf8+ {[%clk 0:00:13]}  Kb3 {[%clk 0:00:49]} 69. Bg7 {[%clk 0:00:13]}  a3 {[%clk 0:00:49]} 70. Bf8 {[%clk 0:00:13]}  a2 {[%clk 0:00:48]} 71. Ba3 {[%clk 0:00:13]}  Ka4 {[%clk 0:00:47]} 72. Kxa2 {[%clk 0:00:12]} 1/2-1/2


[Site "https://www.chess.com"]

[Event "Titled Tuesday Blitz July 11 Early 2023"]
[White "Mangialardo, Tiago Carvalho"]
[Black "Frolyanov, Dmitry"]
[WhiteFideId "2130718"]
[BlackFideId "4151976"]
[WhiteElo "2118"]
[BlackElo "2539"]
[Result "1-0"]
[Round "1"]
[TimeControl "180+2"]
[Date "2023.07.11"]
[WhiteClock "0:00:04"]
[BlackClock "0:00:05"]
[Board "209"]

1. e4 {[%clk 0:02:59]}  e5 {[%clk 0:03:00]} 2. Nf3 {[%clk 0:02:57]}  Nf6 {[%clk 0:02:59]} 3. Nxe5 {[%clk 0:02:57]}  d6 {[%clk 0:02:59]} 4. Nf3 {[%clk 0:02:57]}  Nxe4 {[%clk 0:02:59]} 5. Nc3 {[%clk 0:02:56]}  Nxc3 {[%clk 0:02:59]} 6. dxc3 {[%clk 0:02:57]}  Be7 {[%clk 0:02:59]} 7. Bf4 {[%clk 0:02:56]}  O-O {[%clk 0:03:00]} 8. Qd2 {[%clk 0:02:57]}  Nd7 {[%clk 0:02:58]} 9. O-O-O {[%clk 0:02:53]}  Nc5 {[%clk 0:02:58]} 10. Bd3 {[%clk 0:02:12]}  c6 {[%clk 0:02:50]} 11. h3 {[%clk 0:01:36]}  Qa5 {[%clk 0:02:39]} 12. a3 {[%clk 0:01:06]}  d5 {[%clk 0:02:09]} 13. Rhe1 {[%clk 0:00:58]}  Ne6 {[%clk 0:01:39]} 14. Be5 {[%clk 0:00:41]}  b5 {[%clk 0:01:36]} 15. Nd4 {[%clk 0:00:34]}  Nxd4 {[%clk 0:00:54]} 16. Bxd4 {[%clk 0:00:34]}  Be6 {[%clk 0:00:51]} 17. Bf5 {[%clk 0:00:27]}  Bxa3 {[%clk 0:00:31]} 18. Bxe6 {[%clk 0:00:26]}  Bd6 {[%clk 0:00:29]} 19. Qg5 {[%clk 0:00:18]}  Bf4+ {[%clk 0:00:20]} 20. Qxf4 {[%clk 0:00:17]}  fxe6 {[%clk 0:00:21]} 21. Qe5 {[%clk 0:00:09]}  Rf7 {[%clk 0:00:20]} 22. Re3 {[%clk 0:00:07]}  Qa1+ {[%clk 0:00:16]} 23. Kd2 {[%clk 0:00:07]}  Rxf2+ {[%clk 0:00:16]} 24. Re2 {[%clk 0:00:05]}  Rxe2+ {[%clk 0:00:05]} 25. Kxe2 {[%clk 0:00:04]} 1-0


[Site "https://www.chess.com"]